Workbook

Sheet Instructions
B2: Renewables First
B11: Purpose
B12: -The LCOE Tariff Calculator is designed to help energy sector stakeholders calculate accurate lifetime energy cost of power generation technologies.
B13: -It makes complex financial analysis accessible to everyone from developers to policymakers.
B15: Description
B16: -This tool determines the total cost per unit of electricity for a utility scale solar power plant with a 25 year PPA.
B17: -It factors in all major costs (capital, operations, maintenance), includes financial parameters (discount rates, capital structure), and provides detailed analysis with technology-specific considerations.
B18: -Uses industry-standard methods for reliable results.
B20: Note
B21: -This workbook requires both Macros and Iterative Calculations to function properly.
B23: -To Enable Macros: 1. Look for the yellow security warning at the top of Excel 2. Click "Enable Content" or "Enable Macros"
B25: -If Macros are Disabled at Security Level: 1. Go to File > Options > Trust Center 2. Click "Trust Center Settings" 3. Select "Macro Settings" 4. Choose "Enable all macros"
B27: -To Manually Enable Iterations (if needed): 1. Go to File > Options 2. Click "Formulas" 3. Check "Enable iterative calculation" 4. Set Maximum Iterations to 100 5. Set Maximum Change to 0.001
B29: Disclaimer
B30: -Results depend on input accuracy
B31: -Uses standardized assumptions that may differ from local conditions
B32: -Future projections carry inherent uncertainties
B33: -Not meant as financial advice
B34: -No liability accepted for decisions based on results
B35: -Uses simplified models suitable for general planning
B39: 2025 Renewables First. All Rights Reserved. Developed by Ahtasam Ahmad This work is proprietary and confidential. No part of this document may be reproduced, distributed, or transmitted in any form or by any means, without the prior written permission of Renewables First. Unauthorized use, reproduction, or distribution may result in legal action. For permissions and inquiries, please contact: Renewables First +92 51 88773676 info@renewablesfirst.org

Sheet Dashboard
C2: Solar - 25 year PPA
A3: Levelized Tariff | C3: US cents | D3: =IF(OR(D23>48,D41>25,D44>25),"False Entry",Solar!D6) -> 3.622414091 | AG3: Levelized Tariff Solar
C4: Rs./kWh | D4: =D3*D47/100 -> 10.07031117
A7: This workbook requires Macros to run. Enable Macros by clicking "Enable Content" in the security warning bar. The macro will automatically enable iteration settings. If calculation errors persist e.g. "Microsoft has blocked macros from running," manually enable iteration in File > Options > Formulas > Enable iterative calculation. For detailed steps, refer to the instructions sheet.
A9: Please populate the following fields with project particulars to calculate the LCOE
A11: Generation | AG11: 2015 | AH11: 14.2
A12: Capacity (MW) (Name Plate Capacity) | D12: 120 | AG12: 2016 | AH12: 13.4
A13: Capacity Factor (Based On Technical Feasibility) | C13: % | D13: 0.24 | AG13: 2017 | AH13: 13.4
AG14: 2018 | AH14: 11.6
A15: Project Cost in USD - Million (M) | AG15: 2019 | AH15: 12
AG16: 2020 | AH16: 5.5
A17: Engineering & Procurement Cost (E.g. PV Modules, Buildings, Balance of Plant, Cabling, Trackers, Inverters etc.) | C17: USD'M/MW | D17: 0.42 | AG17: 2021 | AH17: 5.5
A18: Degradation | C18: % of EPC | D18: 0.03 | AG18: 2022 | AH18: 3.7
A19: Project Development Cost (E.g. Feasibility Study, Advisors & Consultant Fee etc.) | C19: % of EPC | D19: 0.02 | AG19: 2023 | AH19: 3.9
A20: Land | C20: USD'M | D20: 2.75 | AG20: Solar Tariff - New | AH20: =D3 -> 3.622414091
A21: Insurance During the Project Construction Period | C21: % of EPC | D21: 0.004
A22: Financing Fees | C22: % of Debt | D22: 0.02
A23: Construction Period | C23: Months | D23: 10 | E23: Not more than 48 months
A25: Capital Structure | AH25: 1
AH26: 2
A27: Debt as a % of Total Project Capital Expenditure | D27: 0.75 | AH27: 3
A28: Equity | D28: =1-D27 -> 0.25 | AH28: 4
A30: % of Debt Sourced From Foreign Lenders | D30: 0.5 | AH30: 5
A31: % of Local Debt | D31: =1-D30 -> 0.5
AH32: 6
A33: Operational | AH33: 7
AH34: 8
A35: Fixed Operations & Maintenance | C35: USD/MW | D35: 9000 | AH35: 9
A36: Insurance During Project's Tenor | C36: % of EPC | D36: 0.004 | AH36: 10
AH37: 11
A38: Financing and other assumptions | AH38: 12
AH39: 13
A40: Local Financing Rate | D40: 0.15 | AH40: 14
A41: Tenor | C41: Years | D41: 15 | E41: Not more than 25 years | AH41: 15
AH42: 16
A43: Foreign Financing Rate | D43: 0.09 | AH43: 17
A44: Tenor | C44: Years | D44: 15 | E44: Not more than 25 years | AH44: 18
AH45: 19
A46: Return on Equity | D46: 0.14 | AH46: 20
A47: Exchange Rate | C47: USD/PKR | D47: 278 | AH47: 21
AH48: 22
AH49: 23
AH50: 24
AH51: 25

Sheet Solar (hidden)
C1: Solar
V2: Solar
A3: Capacity (MW) | D3: =Dashboard!D12 -> 120
A4: Capacity Factor | D4: =Dashboard!D13 -> 0.24 | V4: IDC | AH4: ROEDC
A5: Generation (MWh) | D5: =D4*(365*24)*D3 -> 252288
A6: Levelized Tariff | B6: US cents | D6: =L79 -> 3.622414091 | V6: Local | W6: USD'm | X6: =D28 -> 22.20063576 | AB6: Foreign | AC6: USD'm | AD6: =D27 -> 22.20063576 | AI6: USD'm | AJ6: =D29 -> 14.80042384
B7: Rs./kWh
A9: Project Cost (in USD'm) | K9: Financing and other assumptions | V9: Months | W9: Opening Debt | X9: Drawdown | Y9: IDC | Z9: Closing | AB9: Months | AC9: Opening Debt | AD9: Drawdown | AE9: IDC | AF9: Closing | AH9: Months | AI9: Opening Debt | AJ9: Drawdown | AK9: ROE | AL9: Closing
C10: Per MW | D10: Total | V10: 1 | W10: 0 | X10: =IF(V10>$D$22,0,$X$6/$D$22) -> 2.220063576 | Y10: =SUM(W10:X10)*($O$13/12) -> 0.0277507947 | Z10: =W10+X10 -> 2.220063576 | AB10: 1 | AC10: 0 | AD10: =IF(AB10>$D$22,0,$AD$6/$D$22) -> 2.220063576 | AE10: =SUM(AC10:AD10)*($O$20/12) -> 0.01665047682 | AF10: =AC10+AD10 -> 2.220063576 | AH10: 1 | AI10: 0 | AJ10: =IF(AH10>$D$22,0,$AJ$6/$D$22) -> 1.480042384 | AK10: =SUM(AI10:AJ10)*($O$24/12) -> 0.01726716115 | AL10: =AI10+AJ10 -> 1.480042384
A11: EPC Cost | C11: =Dashboard!D17 -> 0.42 | D11: =C11*D3 -> 50.4 | K11: KIBOR | N11: base | O11: 0.12 | V11: =V10+1 -> 2 | W11: =IF(V11>$D$22,0,Z10) -> 2.220063576 | X11: =IF(V11>$D$22,0,$X$6/$D$22) -> 2.220063576 | Y11: =SUM(W11:X11)*($O$13/12) -> 0.0555015894 | Z11: =W11+X11 -> 4.440127152 | AB11: =AB10+1 -> 2 | AC11: =IF(AB11>$D$22,0,AF10) -> 2.220063576 | AD11: =IF(AB11>$D$22,0,$AD$6/$D$22) -> 2.220063576 | AE11: =SUM(AC11:AD11)*($O$20/12) -> 0.03330095364 | AF11: =AC11+AD11 -> 4.440127152 | AH11: =AH10+1 -> 2 | AI11: =IF(AH11>$D$22,0,AL10) -> 1.480042384 | AJ11: =IF(AH11>$D$22,0,$AJ$6/$D$22) -> 1.480042384 | AK11: =SUM(AI11:AJ11)*($O$24/12) -> 0.0345343223 | AL11: =AI11+AJ11 -> 2.960084768
A12: Degradation | B12: =Dashboard!D18 -> 0.03 | D12: =B12*D11 -> 1.512 | K12: Spread | O12: 0.025 | V12: 3 | W12: =IF(V12>$D$22,0,Z11) -> 4.440127152 | X12: =IF(V12>$D$22,0,$X$6/$D$22) -> 2.220063576 | Y12: =SUM(W12:X12)*($O$13/12) -> 0.08325238411 | Z12: =W12+X12 -> 6.660190728 | AB12: 3 | AC12: =IF(AB12>$D$22,0,AF11) -> 4.440127152 | AD12: =IF(AB12>$D$22,0,$AD$6/$D$22) -> 2.220063576 | AE12: 0.04995143046 | AF12: 6.660190728 | AH12: 3 | AI12: =IF(AH12>$D$22,0,AL11) -> 2.960084768 | AJ12: =IF(AH12>$D$22,0,$AJ$6/$D$22) -> 1.480042384 | AK12: =SUM(AI12:AJ12)*($O$24/12) -> 0.05180148344 | AL12: =AI12+AJ12 -> 4.440127152
A13: PDC | B13: =Dashboard!D19 -> 0.02 | D13: =B13*D11 -> 1.008 | K13: Local Financing Rate | O13: =Dashboard!D40 -> 0.15 | V13: 4 | W13: 6.660190728 | X13: 2.220063576 | Y13: 0.1110031788 | Z13: 8.880254305 | AB13: 4 | AC13: 6.660190728 | AD13: 2.220063576 | AE13: 0.06660190728 | AF13: 8.880254305 | AH13: 4 | AI13: 4.440127152 | AJ13: 1.480042384 | AK13: 0.06906864459 | AL13: 5.920169536
A14: Land | D14: =Dashboard!D20 -> 2.75 | K14: Tenor | O14: =Dashboard!D41 -> 15 | V14: 5 | W14: 8.880254305 | X14: 2.220063576 | Y14: 0.1387539735 | Z14: 11.10031788 | AB14: 5 | AC14: 8.880254305 | AD14: 2.220063576 | AE14: 0.08325238411 | AF14: 11.10031788 | AH14: 5 | AI14: 5.920169536 | AJ14: 1.480042384 | AK14: 0.08633580574 | AL14: 7.400211921
A15: Insurance during construction | B15: =Dashboard!D21 -> 0.004 | D15: =B15*D11 -> 0.2016 | K15: Qtr. Installment | N15: 4 | O15: =O14*N15 -> 60 | V15: 6 | W15: 11.10031788 | X15: 2.220063576 | Y15: 0.1665047682 | Z15: 13.32038146 | AB15: 6 | AC15: 11.10031788 | AD15: 2.220063576 | AE15: 0.09990286093 | AF15: 13.32038146 | AH15: 6 | AI15: 7.400211921 | AJ15: 1.480042384 | AK15: 0.1036029669 | AL15: 8.880254305
A16: CAPEX | D16: =SUM(D11:D15) -> 55.8716 | V16: 7 | W16: 13.32038146 | X16: 2.220063576 | Y16: 0.1942555629 | Z16: 15.54044503 | AB16: 7 | AC16: 13.32038146 | AD16: 2.220063576 | AE16: 0.1165533377 | AF16: 15.54044503 | AH16: 7 | AI16: 8.880254305 | AJ16: 1.480042384 | AK16: 0.120870128 | AL16: 10.36029669
A17: Financing fees | B17: =Dashboard!D22 -> 0.02 | D17: =D19*B17*B26 -> 0.8880254305 | K17: SoFR | N17: base | O17: 0.0468 | V17: 8 | W17: 15.54044503 | X17: 2.220063576 | Y17: 0.2220063576 | Z17: 17.76050861 | AB17: 8 | AC17: 15.54044503 | AD17: 2.220063576 | AE17: 0.1332038146 | AF17: 17.76050861 | AH17: 8 | AI17: 10.36029669 | AJ17: 1.480042384 | AK17: 0.1381372892 | AL17: 11.84033907
A18: IDC | D18: =AE64+Y64 -> 2.442069934 | K18: Credit Adjustment Spread | O18: 0 | V18: 9 | W18: 17.76050861 | X18: 2.220063576 | Y18: 0.2497571523 | Z18: 19.98057219 | AB18: 9 | AC18: 17.76050861 | AD18: 2.220063576 | AE18: 0.1498542914 | AF18: 19.98057219 | AH18: 9 | AI18: 11.84033907 | AJ18: 1.480042384 | AK18: 0.1554044503 | AL18: 13.32038146
A19: Total Project Cost | C19: =D19/$D$3 -> 0.4933474614 | D19: =SUM(D17:D18)+D16 -> 59.20169536 | K19: Spread | O19: 0.0425 | V19: 10 | W19: 19.98057219 | X19: 2.220063576 | Y19: 0.277507947 | Z19: 22.20063576 | AB19: 10 | AC19: 19.98057219 | AD19: 2.220063576 | AE19: 0.1665047682 | AF19: 22.20063576 | AH19: 10 | AI19: 13.32038146 | AJ19: 1.480042384 | AK19: 0.1726716115 | AL19: 14.80042384
K20: Foreign Financing Rate | O20: =Dashboard!D43 -> 0.09 | V20: 11 | W20: 0 | X20: 0 | Y20: 0 | Z20: 0 | AB20: 11 | AC20: =IF(AB20>$D$22,0,AF19) -> 0 | AD20: =IF(AB20>$D$22,0,$AD$6/$D$22) -> 0 | AE20: =SUM(AC20:AD20)*($O$20/12) -> 0 | AF20: =AC20+AD20 -> 0 | AH20: 11 | AI20: 0 | AJ20: 0 | AK20: 0 | AL20: 0
K21: Tenor | O21: =Dashboard!D44 -> 15 | V21: 12 | W21: 0 | X21: 0 | Y21: 0 | Z21: 0 | AB21: 12 | AC21: 0 | AD21: 0 | AE21: 0 | AF21: 0 | AH21: 12 | AI21: 0 | AJ21: 0 | AK21: 0 | AL21: 0
A22: Construction Period | B22: months | D22: =Dashboard!D23 -> 10 | K22: Qtr. Installment | N22: 4 | O22: =O21*N22 -> 60 | V22: 13 | W22: 0 | X22: 0 | Y22: 0 | Z22: 0 | AB22: 13 | AC22: 0 | AD22: 0 | AE22: 0 | AF22: 0 | AH22: 13 | AI22: 0 | AJ22: 0 | AK22: 0 | AL22: 0
V23: 14 | W23: 0 | X23: 0 | Y23: 0 | Z23: 0 | AB23: 14 | AC23: 0 | AD23: 0 | AE23: 0 | AF23: 0 | AH23: 14 | AI23: 0 | AJ23: 0 | AK23: 0 | AL23: 0
A24: Capital Structure | K24: ROE | O24: =Dashboard!D46 -> 0.14 | V24: 15 | W24: 0 | X24: 0 | Y24: 0 | Z24: 0 | AB24: 15 | AC24: 0 | AD24: 0 | AE24: 0 | AF24: 0 | AH24: 15 | AI24: 0 | AJ24: 0 | AK24: 0 | AL24: 0
K25: Exchange. Rate | O25: =Dashboard!D47 -> 278 | V25: 16 | W25: 0 | X25: 0 | Y25: 0 | Z25: 0 | AB25: 16 | AC25: 0 | AD25: 0 | AE25: 0 | AF25: 0 | AH25: 16 | AI25: 0 | AJ25: 0 | AK25: 0 | AL25: 0
A26: Debt | B26: =Dashboard!D27 -> 0.75 | D26: =$B26*D19 -> 44.40127152 | K26: Discount Rate | O26: =(O13*B28*B26)+(O20*B27*B26)+(O24*B29) -> 0.125 | V26: 17 | W26: 0 | X26: 0 | Y26: 0 | Z26: 0 | AB26: 17 | AC26: 0 | AD26: 0 | AE26: 0 | AF26: 0 | AH26: 17 | AI26: 0 | AJ26: 0 | AK26: 0 | AL26: 0
A27: Foreign | B27: =Dashboard!D30 -> 0.5 | D27: =$B27*D$26 -> 22.20063576 | K27: Project Life | O27: 25 | V27: 18 | W27: 0 | X27: 0 | Y27: 0 | Z27: 0 | AB27: 18 | AC27: 0 | AD27: 0 | AE27: 0 | AF27: 0 | AH27: 18 | AI27: 0 | AJ27: 0 | AK27: 0 | AL27: 0
A28: Local | B28: =1-B27 -> 0.5 | D28: =$B28*D$26 -> 22.20063576 | V28: 19 | W28: 0 | X28: 0 | Y28: 0 | Z28: 0 | AB28: 19 | AC28: 0 | AD28: 0 | AE28: 0 | AF28: 0 | AH28: 19 | AI28: 0 | AJ28: 0 | AK28: 0 | AL28: 0
A29: Equity | B29: =1-B26 -> 0.25 | D29: =$B29*D19 -> 14.80042384 | V29: 20 | W29: 0 | X29: 0 | Y29: 0 | Z29: 0 | AB29: 20 | AC29: 0 | AD29: 0 | AE29: 0 | AF29: 0 | AH29: 20 | AI29: 0 | AJ29: 0 | AK29: 0 | AL29: 0
V30: 21 | W30: 0 | X30: 0 | Y30: 0 | Z30: 0 | AB30: 21 | AC30: 0 | AD30: 0 | AE30: 0 | AF30: 0 | AH30: 21 | AI30: 0 | AJ30: 0 | AK30: 0 | AL30: 0
A31: Tariff | V31: 22 | W31: 0 | X31: 0 | Y31: 0 | Z31: 0 | AB31: 22 | AC31: 0 | AD31: 0 | AE31: 0 | AF31: 0 | AH31: 22 | AI31: 0 | AJ31: 0 | AK31: 0 | AL31: 0
V32: 23 | W32: 0 | X32: 0 | Y32: 0 | Z32: 0 | AB32: 23 | AC32: 0 | AD32: 0 | AE32: 0 | AF32: 0 | AH32: 23 | AI32: 0 | AJ32: 0 | AK32: 0 | AL32: 0
C33: Solar | V33: 24 | W33: 0 | X33: 0 | Y33: 0 | Z33: 0 | AB33: 24 | AC33: 0 | AD33: 0 | AE33: 0 | AF33: 0 | AH33: 24 | AI33: 0 | AJ33: 0 | AK33: 0 | AL33: 0
V34: 25 | W34: 0 | X34: 0 | Y34: 0 | Z34: 0 | AB34: 25 | AC34: 0 | AD34: 0 | AE34: 0 | AF34: 0 | AH34: 25 | AI34: 0 | AJ34: 0 | AK34: 0 | AL34: 0
C35: USD'000 | D35: Rs./kWh | V35: 26 | W35: 0 | X35: 0 | Y35: 0 | Z35: 0 | AB35: 26 | AC35: 0 | AD35: 0 | AE35: 0 | AF35: 0 | AH35: 26 | AI35: 0 | AJ35: 0 | AK35: 0 | AL35: 0
A36: Fixed O&M - Local | B36: =Dashboard!D35 -> 9000 | C36: =B36*D3/1000 -> 1080 | D36: =(C36*$O$25)/(D5) -> 1.190068493 | V36: 27 | W36: 0 | X36: 0 | Y36: 0 | Z36: 0 | AB36: 27 | AC36: 0 | AD36: 0 | AE36: 0 | AF36: 0 | AH36: 27 | AI36: 0 | AJ36: 0 | AK36: 0 | AL36: 0
A37: Fixed O&M - Foreign | C37: =$E$23*B37/1000 -> 0 | D37: =(C37*$O$25)/(D5) -> 0 | V37: 28 | W37: 0 | X37: 0 | Y37: 0 | Z37: 0 | AB37: 28 | AC37: 0 | AD37: 0 | AE37: 0 | AF37: 0 | AH37: 28 | AI37: 0 | AJ37: 0 | AK37: 0 | AL37: 0
A38: Insurance | B38: =Dashboard!D36 -> 0.004 | C38: =D11*$B$38*1000 -> 201.6 | D38: =(C38*$O$25)/($D$5) -> 0.2221461187 | V38: 29 | W38: 0 | X38: 0 | Y38: 0 | Z38: 0 | AB38: 29 | AC38: 0 | AD38: 0 | AE38: 0 | AF38: 0 | AH38: 29 | AI38: 0 | AJ38: 0 | AK38: 0 | AL38: 0
A39: ROE | C39: =$O$24*D29*1000 -> 2072.059338 | D39: =(C39*$O$25)/($D$5) -> 2.283233828 | V39: 30 | W39: 0 | X39: 0 | Y39: 0 | Z39: 0 | AB39: 30 | AC39: 0 | AD39: 0 | AE39: 0 | AF39: 0 | AH39: 30 | AI39: 0 | AJ39: 0 | AK39: 0 | AL39: 0
A40: ROEDC | C40: =AK64*1000 -> 949.6938631 | D40: =-PMT(O24,O27,(C40*O25/D5),) -> 0.1522614898 | V40: 31 | W40: 0 | X40: 0 | Y40: 0 | Z40: 0 | AB40: 31 | AC40: 0 | AD40: 0 | AE40: 0 | AF40: 0 | AH40: 31 | AI40: 0 | AJ40: 0 | AK40: 0 | AL40: 0
A41: Principal - Local | C41: =(SUM(W74:W77)-SUM(X74:X77))*1000 -> 434.5566955 | D41: =(C41*$O$25)/($D$5) -> 0.4788446591 | V41: 32 | W41: 0 | X41: 0 | Y41: 0 | Z41: 0 | AB41: 32 | AC41: 0 | AD41: 0 | AE41: 0 | AF41: 0 | AH41: 32 | AI41: 0 | AJ41: 0 | AK41: 0 | AL41: 0
A42: Interest Service - Local | C42: =(SUM(X74:X77))*1000 -> 3306.401157 | D42: =(C42*$O$25)/($D$5) -> 3.643373929 | V42: 33 | W42: 0 | X42: 0 | Y42: 0 | Z42: 0 | AB42: 33 | AC42: 0 | AD42: 0 | AE42: 0 | AF42: 0 | AH42: 33 | AI42: 0 | AJ42: 0 | AK42: 0 | AL42: 0
A43: Principal - Foreign | C43: =(SUM(AE74:AE77)-SUM(AF74:AF77))*1000 -> 738.0033512 | D43: =(C43*$O$25)/($D$5) -> 0.8132171631 | V43: 34 | W43: 0 | X43: 0 | Y43: 0 | Z43: 0 | AB43: 34 | AC43: 0 | AD43: 0 | AE43: 0 | AF43: 0 | AH43: 34 | AI43: 0 | AJ43: 0 | AK43: 0 | AL43: 0
A44: Interest Service - Foreign | C44: =(SUM(AF74:AF77))*1000 -> 1973.611382 | D44: =(C44*$O$25)/($D$5) -> 2.174752522 | V44: 35 | W44: 0 | X44: 0 | Y44: 0 | Z44: 0 | AB44: 35 | AC44: 0 | AD44: 0 | AE44: 0 | AF44: 0 | AH44: 35 | AI44: 0 | AJ44: 0 | AK44: 0 | AL44: 0
A45: Total Tariff - debt service period | D45: =SUM(D36:D44) -> 10.9578982 | V45: 36 | W45: 0 | X45: 0 | Y45: 0 | Z45: 0 | AB45: 36 | AC45: 0 | AD45: 0 | AE45: 0 | AF45: 0 | AH45: 36 | AI45: 0 | AJ45: 0 | AK45: 0 | AL45: 0
A46: Total Tariff - non-debt service period | D46: =D45-D43-D44-D42-D41 -> 3.847709929 | V46: 37 | W46: 0 | X46: 0 | Y46: 0 | Z46: 0 | AB46: 37 | AC46: 0 | AD46: 0 | AE46: 0 | AF46: 0 | AH46: 37 | AI46: 0 | AJ46: 0 | AK46: 0 | AL46: 0
V47: 38 | W47: 0 | X47: 0 | Y47: 0 | Z47: 0 | AB47: 38 | AC47: 0 | AD47: 0 | AE47: 0 | AF47: 0 | AH47: 38 | AI47: 0 | AJ47: 0 | AK47: 0 | AL47: 0
V48: 39 | W48: 0 | X48: 0 | Y48: 0 | Z48: 0 | AB48: 39 | AC48: 0 | AD48: 0 | AE48: 0 | AF48: 0 | AH48: 39 | AI48: 0 | AJ48: 0 | AK48: 0 | AL48: 0
V49: 40 | W49: 0 | X49: 0 | Y49: 0 | Z49: 0 | AB49: 40 | AC49: 0 | AD49: 0 | AE49: 0 | AF49: 0 | AH49: 40 | AI49: 0 | AJ49: 0 | AK49: 0 | AL49: 0
V50: 41 | W50: 0 | X50: 0 | Y50: 0 | Z50: 0 | AB50: 41 | AC50: 0 | AD50: 0 | AE50: 0 | AF50: 0 | AH50: 41 | AI50: 0 | AJ50: 0 | AK50: 0 | AL50: 0
A51: Tariff Table (Solar) | V51: 42 | W51: 0 | X51: 0 | Y51: 0 | Z51: 0 | AB51: 42 | AC51: 0 | AD51: 0 | AE51: 0 | AF51: 0 | AH51: 42 | AI51: 0 | AJ51: 0 | AK51: 0 | AL51: 0
G52: Local | I52: Foreign | V52: 43 | W52: 0 | X52: 0 | Y52: 0 | Z52: 0 | AB52: 43 | AC52: 0 | AD52: 0 | AE52: 0 | AF52: 0 | AH52: 43 | AI52: 0 | AJ52: 0 | AK52: 0 | AL52: 0
A53: Year | B53: O&M Local | C53: O&M Foreign | D53: Insurance | E53: ROE | F53: ROEDC | G53: Principal | H53: Interest | I53: Principal | J53: Interest | K53: Total | L53: cents/kWh | V53: 44 | W53: 0 | X53: 0 | Y53: 0 | Z53: 0 | AB53: 44 | AC53: 0 | AD53: 0 | AE53: 0 | AF53: 0 | AH53: 44 | AI53: 0 | AJ53: 0 | AK53: 0 | AL53: 0
A54: 1 | B54: =D36 -> 1.190068493 | C54: =D37 -> 0 | D54: =D38 -> 0.2221461187 | E54: =D39 -> 2.283233828 | F54: =D40 -> 0.1522614898 | G54: =D41 -> 0.4788446591 | H54: =D42 -> 3.643373929 | I54: =D43 -> 0.8132171631 | J54: =D44 -> 2.174752522 | K54: =SUM(B54:J54) -> 10.9578982 | L54: =K54/$O$25*100 -> 3.941690001 | V54: 45 | W54: 0 | X54: 0 | Y54: 0 | Z54: 0 | AB54: 45 | AC54: 0 | AD54: 0 | AE54: 0 | AF54: 0 | AH54: 45 | AI54: 0 | AJ54: 0 | AK54: 0 | AL54: 0
A55: =A54+1 -> 2 | B55: =B54 -> 1.190068493 | C55: =C54 -> 0 | D55: 0.2221461187 | E55: 2.283233828 | F55: 0.1522614898 | G55: 0.4788446591 | H55: 3.643373929 | I55: 0.8132171631 | J55: 2.174752522 | K55: =SUM(B55:J55) -> 10.9578982 | L55: =K55/$O$25*100 -> 3.941690001 | V55: 46 | W55: 0 | X55: 0 | Y55: 0 | Z55: 0 | AB55: 46 | AC55: 0 | AD55: 0 | AE55: 0 | AF55: 0 | AH55: 46 | AI55: 0 | AJ55: 0 | AK55: 0 | AL55: 0
A56: =A55+1 -> 3 | B56: =B55 -> 1.190068493 | C56: =C55 -> 0 | D56: =D55 -> 0.2221461187 | E56: =E55 -> 2.283233828 | F56: =F55 -> 0.1522614898 | G56: =G55 -> 0.4788446591 | H56: =H55 -> 3.643373929 | I56: =I55 -> 0.8132171631 | J56: =J55 -> 2.174752522 | K56: 10.9578982 | L56: 3.941690001 | V56: 47 | W56: 0 | X56: 0 | Y56: 0 | Z56: 0 | AB56: 47 | AC56: 0 | AD56: 0 | AE56: 0 | AF56: 0 | AH56: 47 | AI56: 0 | AJ56: 0 | AK56: 0 | AL56: 0
A57: 4 | B57: 1.190068493 | C57: 0 | D57: 0.2221461187 | E57: 2.283233828 | F57: 0.1522614898 | G57: 0.4788446591 | H57: 3.643373929 | I57: 0.8132171631 | J57: 2.174752522 | K57: 10.9578982 | L57: 3.941690001 | V57: 48 | W57: 0 | X57: 0 | Y57: 0 | Z57: 0 | AB57: 48 | AC57: 0 | AD57: 0 | AE57: 0 | AF57: 0 | AH57: 48 | AI57: 0 | AJ57: 0 | AK57: 0 | AL57: 0
A58: 5 | B58: 1.190068493 | C58: 0 | D58: 0.2221461187 | E58: 2.283233828 | F58: 0.1522614898 | G58: 0.4788446591 | H58: 3.643373929 | I58: 0.8132171631 | J58: 2.174752522 | K58: 10.9578982 | L58: 3.941690001 | V58: 49 | W58: 0 | X58: 0 | Y58: 0 | Z58: 0 | AB58: 49 | AC58: 0 | AD58: 0 | AE58: 0 | AF58: 0 | AH58: 49 | AI58: 0 | AJ58: 0 | AK58: 0 | AL58: 0
A59: 6 | B59: 1.190068493 | C59: 0 | D59: 0.2221461187 | E59: 2.283233828 | F59: 0.1522614898 | G59: 0.4788446591 | H59: 3.643373929 | I59: 0.8132171631 | J59: 2.174752522 | K59: 10.9578982 | L59: 3.941690001 | V59: 50 | W59: 0 | X59: 0 | Y59: 0 | Z59: 0 | AB59: 50 | AC59: 0 | AD59: 0 | AE59: 0 | AF59: 0 | AH59: 50 | AI59: 0 | AJ59: 0 | AK59: 0 | AL59: 0
A60: 7 | B60: 1.190068493 | C60: 0 | D60: 0.2221461187 | E60: 2.283233828 | F60: 0.1522614898 | G60: 0.4788446591 | H60: 3.643373929 | I60: 0.8132171631 | J60: 2.174752522 | K60: 10.9578982 | L60: 3.941690001 | V60: 51 | W60: 0 | X60: 0 | Y60: 0 | Z60: 0 | AB60: 51 | AC60: 0 | AD60: 0 | AE60: 0 | AF60: 0 | AH60: 51 | AI60: 0 | AJ60: 0 | AK60: 0 | AL60: 0
A61: 8 | B61: 1.190068493 | C61: 0 | D61: 0.2221461187 | E61: 2.283233828 | F61: 0.1522614898 | G61: 0.4788446591 | H61: 3.643373929 | I61: 0.8132171631 | J61: 2.174752522 | K61: 10.9578982 | L61: 3.941690001 | V61: 52 | W61: 0 | X61: 0 | Y61: 0 | Z61: 0 | AB61: 52 | AC61: 0 | AD61: 0 | AE61: 0 | AF61: 0 | AH61: 52 | AI61: 0 | AJ61: 0 | AK61: 0 | AL61: 0
A62: 9 | B62: 1.190068493 | C62: 0 | D62: 0.2221461187 | E62: 2.283233828 | F62: 0.1522614898 | G62: 0.4788446591 | H62: 3.643373929 | I62: 0.8132171631 | J62: 2.174752522 | K62: 10.9578982 | L62: 3.941690001 | V62: 53 | W62: 0 | X62: 0 | Y62: 0 | Z62: 0 | AB62: 53 | AC62: 0 | AD62: 0 | AE62: 0 | AF62: 0 | AH62: 53 | AI62: 0 | AJ62: 0 | AK62: 0 | AL62: 0
A63: 10 | B63: 1.190068493 | C63: 0 | D63: 0.2221461187 | E63: 2.283233828 | F63: 0.1522614898 | G63: 0.4788446591 | H63: 3.643373929 | I63: 0.8132171631 | J63: 2.174752522 | K63: 10.9578982 | L63: 3.941690001 | V63: 54 | W63: 0 | X63: 0 | Y63: 0 | Z63: 0 | AB63: 54 | AC63: 0 | AD63: 0 | AE63: 0 | AF63: 0 | AH63: 54 | AI63: 0 | AJ63: 0 | AK63: 0 | AL63: 0
A64: 11 | B64: 1.190068493 | C64: 0 | D64: 0.2221461187 | E64: 2.283233828 | F64: 0.1522614898 | G64: 0.4788446591 | H64: 3.643373929 | I64: 0.8132171631 | J64: 2.174752522 | K64: 10.9578982 | L64: 3.941690001 | X64: =SUM(X10:X63) -> 22.20063576 | Y64: =SUM(Y10:Y63) -> 1.526293709 | AD64: =SUM(AD10:AD63) -> 22.20063576 | AE64: =SUM(AE10:AE63) -> 0.9157762252 | AJ64: =SUM(AJ10:AJ63) -> 14.80042384 | AK64: =SUM(AK10:AK63) -> 0.9496938631
A65: 12 | B65: 1.190068493 | C65: 0 | D65: 0.2221461187 | E65: 2.283233828 | F65: 0.1522614898 | G65: 0.4788446591 | H65: 3.643373929 | I65: 0.8132171631 | J65: 2.174752522 | K65: 10.9578982 | L65: 3.941690001
A66: 13 | B66: 1.190068493 | C66: 0 | D66: 0.2221461187 | E66: 2.283233828 | F66: 0.1522614898 | G66: 0.4788446591 | H66: 3.643373929 | I66: 0.8132171631 | J66: 2.174752522 | K66: 10.9578982 | L66: 3.941690001
A67: 14 | B67: 1.190068493 | C67: 0 | D67: 0.2221461187 | E67: 2.283233828 | F67: 0.1522614898 | G67: 0.4788446591 | H67: 3.643373929 | I67: 0.8132171631 | J67: 2.174752522 | K67: 10.9578982 | L67: 3.941690001
A68: 15 | B68: 1.190068493 | C68: 0 | D68: 0.2221461187 | E68: 2.283233828 | F68: 0.1522614898 | G68: 0.4788446591 | H68: 3.643373929 | I68: 0.8132171631 | J68: 2.174752522 | K68: 10.9578982 | L68: 3.941690001
A69: 16 | B69: =B68 -> 1.190068493 | C69: =C68 -> 0 | D69: =D68 -> 0.2221461187 | E69: =E68 -> 2.283233828 | F69: =F68 -> 0.1522614898 | G69: 0 | H69: 0 | I69: 0 | J69: 0 | K69: 3.847709929 | L69: 1.38406832 | U69: Loan Amortization
A70: 17 | B70: 1.190068493 | C70: 0 | D70: 0.2221461187 | E70: 2.283233828 | F70: 0.1522614898 | G70: 0 | H70: 0 | I70: 0 | J70: 0 | K70: 3.847709929 | L70: 1.38406832
A71: 18 | B71: 1.190068493 | C71: 0 | D71: 0.2221461187 | E71: 2.283233828 | F71: 0.1522614898 | G71: 0 | H71: 0 | I71: 0 | J71: 0 | K71: 3.847709929 | L71: 1.38406832 | W71: =X64 -> 22.20063576 | AE71: =AD64 -> 22.20063576
A72: 19 | B72: 1.190068493 | C72: 0 | D72: 0.2221461187 | E72: 2.283233828 | F72: 0.1522614898 | G72: 0 | H72: 0 | I72: 0 | J72: 0 | K72: 3.847709929 | L72: 1.38406832
A73: 20 | B73: 1.190068493 | C73: 0 | D73: 0.2221461187 | E73: 2.283233828 | F73: 0.1522614898 | G73: 0 | H73: 0 | I73: 0 | J73: 0 | K73: 3.847709929 | L73: 1.38406832 | U73: Year | V73: Opening | W73: Repayment | X73: Interest | Y73: Closing | AC73: Year | AD73: Opening | AE73: Repayment | AF73: Interest | AG73: Closing
A74: 21 | B74: 1.190068493 | C74: 0 | D74: 0.2221461187 | E74: 2.283233828 | F74: 0.1522614898 | G74: 0 | H74: 0 | I74: 0 | J74: 0 | K74: 3.847709929 | L74: 1.38406832 | U74: 1 | V74: =IF(U74>$O$14,0,W71) -> 22.20063576 | W74: =IF(U74>$O$14,0,-PMT(O13/N15,O15,W71,)) -> 0.9352394632 | X74: =(V74*($O$13/$N$15)) -> 0.8325238411 | Y74: =V74-(W74-X74) -> 22.09792014 | AC74: 1 | AD74: =IF(AC74>O21,0,AE71) -> 22.20063576 | AE74: =IF(AC74>O21,0,-PMT(O20/N22,O22,AE71,)) -> 0.6779036833 | AF74: =(AD74*($O$20/$N$22)) -> 0.4995143046 | AG74: =AD74-(AE74-AF74) -> 22.02224638
A75: 22 | B75: 1.190068493 | C75: 0 | D75: 0.2221461187 | E75: 2.283233828 | F75: 0.1522614898 | G75: 0 | H75: 0 | I75: 0 | J75: 0 | K75: 3.847709929 | L75: 1.38406832 | U75: 1 | V75: =IF(U75>$O$14,0,Y74) -> 22.09792014 | W75: =IF(U75>$O$14,0,W74) -> 0.9352394632 | X75: =(V75*($O$13/$N$15)) -> 0.8286720052 | Y75: =V75-(W75-X75) -> 21.99135268 | AC75: 1 | AD75: =IF(AC75>$O$21,0,AG74) -> 22.02224638 | AE75: =IF(AC75>$O$21,0,AE74) -> 0.6779036833 | AF75: =(AD75*($O$20/$N$22)) -> 0.4955005436 | AG75: =AD75-(AE75-AF75) -> 21.83984324
A76: 23 | B76: 1.190068493 | C76: 0 | D76: 0.2221461187 | E76: 2.283233828 | F76: 0.1522614898 | G76: 0 | H76: 0 | I76: 0 | J76: 0 | K76: 3.847709929 | L76: 1.38406832 | U76: 1 | V76: =IF(U76>$O$14,0,Y75) -> 21.99135268 | W76: =IF(U76>$O$14,0,W75) -> 0.9352394632 | X76: 0.8246757256 | Y76: =V76-(W76-X76) -> 21.88078894 | AC76: 1 | AD76: =IF(AC76>$O$21,0,AG75) -> 21.83984324 | AE76: =IF(AC76>$O$21,0,AE75) -> 0.6779036833 | AF76: =(AD76*($O$20/$N$22)) -> 0.491396473 | AG76: =AD76-(AE76-AF76) -> 21.65333603
A77: 24 | B77: 1.190068493 | C77: 0 | D77: 0.2221461187 | E77: 2.283233828 | F77: 0.1522614898 | G77: 0 | H77: 0 | I77: 0 | J77: 0 | K77: 3.847709929 | L77: 1.38406832 | U77: 1 | V77: 21.88078894 | W77: 0.9352394632 | X77: 0.8205295854 | Y77: 21.76607907 | AC77: 1 | AD77: 21.65333603 | AE77: =IF(AC77>$O$21,0,AE76) -> 0.6779036833 | AF77: 0.4872000607 | AG77: 21.46263241
A78: 25 | B78: 1.190068493 | C78: 0 | D78: 0.2221461187 | E78: 2.283233828 | F78: 0.1522614898 | G78: 0 | H78: 0 | I78: 0 | J78: 0 | K78: 3.847709929 | L78: 1.38406832 | U78: 2 | V78: 21.76607907 | W78: 0.9352394632 | X78: 0.816227965 | Y78: 21.64706757 | AC78: 2 | AD78: 21.46263241 | AE78: =IF(AC78>$O$21,0,AE77) -> 0.6779036833 | AF78: 0.4829092292 | AG78: 21.26763796
A79: Levelized | B79: =PMT($O$26,$A$78,-NPV($O$26,B54:B78) ) -> 1.190068493 | C79: 0 | D79: 0.2221461187 | E79: 2.283233828 | F79: 0.1522614898 | G79: 0.4190689833 | H79: 3.188560171 | I79: 0.7117007224 | J79: 1.903271366 | K79: =PMT($O$26,$A$78,-NPV($O$26,K54:K78) ) -> 10.07031117 | L79: 3.622414091 | U79: 2 | V79: 21.64706757 | W79: 0.9352394632 | X79: 0.8117650338 | Y79: 21.52359314 | AC79: 2 | AD79: 21.26763796 | AE79: 0.6779036833 | AF79: 0.478521854 | AG79: 21.06825613
U80: 2 | V80: 21.52359314 | W80: 0.9352394632 | X80: 0.8071347427 | Y80: 21.39548842 | AC80: 2 | AD80: 21.06825613 | AE80: 0.6779036833 | AF80: 0.4740357629 | AG80: 20.86438821
U81: 2 | V81: 21.39548842 | W81: 0.9352394632 | X81: 0.8023308157 | Y81: 21.26257977 | AC81: 2 | AD81: 20.86438821 | AE81: 0.6779036833 | AF81: 0.4694487346 | AG81: 20.65593326
C82: O&M | D82: Insurance | E82: ROE | F82: ROEDC | G82: Principal (Local) | H82: Interest (Local) | I82: Principal (Foreign) | J82: Interest (Foreign) | K82: Total | U82: 3 | V82: 21.26257977 | W82: 0.9352394632 | X82: 0.7973467414 | Y82: 21.12468705 | AC82: 3 | AD82: 20.65593326 | AE82: 0.6779036833 | AF82: 0.4647584983 | AG82: 20.44278807
C83: =B79 -> 1.190068493 | D83: =D79 -> 0.2221461187 | E83: =E79 -> 2.283233828 | F83: =F79 -> 0.1522614898 | G83: 0.4190689833 | H83: 3.188560171 | I83: 0.7117007224 | J83: 1.903271366 | K83: 10.07031117 | U83: 3 | V83: 21.12468705 | W83: 0.9352394632 | X83: 0.7921757643 | Y83: 20.98162335 | AC83: 3 | AD83: 20.44278807 | AE83: 0.6779036833 | AF83: 0.4599627316 | AG83: 20.22484712
U84: 3 | V84: 20.98162335 | W84: 0.9352394632 | X84: 0.7868108756 | Y84: 20.83319476 | AC84: 3 | AD84: 20.22484712 | AE84: 0.6779036833 | AF84: 0.4550590602 | AG84: 20.0020025
U85: 3 | V85: 20.83319476 | W85: 0.9352394632 | X85: 0.7812448036 | Y85: 20.6792001 | AC85: 3 | AD85: 20.0020025 | AE85: 0.6779036833 | AF85: 0.4500450562 | AG85: 19.77414387
U86: 4 | V86: 20.6792001 | W86: 0.9352394632 | X86: 0.7754700039 | Y86: 20.51943064 | AC86: 4 | AD86: 19.77414387 | AE86: 0.6779036833 | AF86: 0.4449182371 | AG86: 19.54115842
U87: 4 | V87: 20.51943064 | W87: 0.9352394632 | X87: 0.7694786491 | Y87: 20.35366983 | AC87: 4 | AD87: 19.54115842 | AE87: 0.6779036833 | AF87: 0.4396760646 | AG87: 19.30293081
U88: 4 | V88: 20.35366983 | W88: 0.9352394632 | X88: 0.7632626186 | Y88: 20.18169298 | AC88: 4 | AD88: 19.30293081 | AE88: 0.6779036833 | AF88: 0.4343159431 | AG88: 19.05934307
U89: 4 | V89: 20.18169298 | W89: 0.9352394632 | X89: 0.7568134869 | Y89: 20.00326701 | AC89: 4 | AD89: 19.05934307 | AE89: 0.6779036833 | AF89: 0.428835219 | AG89: 18.8102746
U90: 5 | V90: 20.00326701 | W90: 0.9352394632 | X90: 0.7501225128 | Y90: 19.81815006 | AC90: 5 | AD90: 18.8102746 | AE90: 0.6779036833 | AF90: 0.4232311785 | AG90: 18.5556021
U91: 5 | V91: 19.81815006 | W91: 0.9352394632 | X91: 0.7431806272 | Y91: 19.62609122 | AC91: 5 | AD91: 18.5556021 | AE91: 0.6779036833 | AF91: 0.4175010472 | AG91: 18.29519946
U92: 5 | V92: 19.62609122 | W92: 0.9352394632 | X92: 0.7359784208 | Y92: 19.42683018 | AC92: 5 | AD92: 18.29519946 | AE92: 0.6779036833 | AF92: 0.4116419879 | AG92: 18.02893777
U93: 5 | V93: 19.42683018 | W93: 0.9352394632 | X93: 0.7285061317 | Y93: 19.22009685 | AC93: 5 | AD93: 18.02893777 | AE93: 0.6779036833 | AF93: 0.4056510997 | AG93: 17.75668518
U94: 6 | V94: 19.22009685 | W94: 0.9352394632 | X94: 0.7207536318 | Y94: 19.00561102 | AC94: 6 | AD94: 17.75668518 | AE94: 0.6779036833 | AF94: 0.3995254166 | AG94: 17.47830692
U95: 6 | V95: 19.00561102 | W95: 0.9352394632 | X95: 0.7127104131 | Y95: 18.78308197 | AC95: 6 | AD95: 17.47830692 | AE95: 0.6779036833 | AF95: 0.3932619056 | AG95: 17.19366514
U96: 6 | V96: 18.78308197 | W96: 0.9352394632 | X96: 0.7043655738 | Y96: 18.55220808 | AC96: 6 | AD96: 17.19366514 | AE96: 0.6779036833 | AF96: 0.3868574656 | AG96: 16.90261892
U97: 6 | V97: 18.55220808 | W97: 0.9352394632 | X97: 0.6957078029 | Y97: 18.31267642 | AC97: 6 | AD97: 16.90261892 | AE97: 0.6779036833 | AF97: 0.3803089257 | AG97: 16.60502416
U98: 7 | V98: 18.31267642 | W98: 0.9352394632 | X98: 0.6867253656 | Y98: 18.06416232 | AC98: 7 | AD98: 16.60502416 | AE98: 0.6779036833 | AF98: 0.3736130436 | AG98: 16.30073352
U99: 7 | V99: 18.06416232 | W99: 0.9352394632 | X99: 0.677406087 | Y99: 17.80632894 | AC99: 7 | AD99: 16.30073352 | AE99: 0.6779036833 | AF99: 0.3667665043 | AG99: 15.98959634
U100: 7 | V100: 17.80632894 | W100: 0.9352394632 | X100: 0.6677373354 | Y100: 17.53882682 | AC100: 7 | AD100: 15.98959634 | AE100: 0.6779036833 | AF100: 0.3597659177 | AG100: 15.67145858
U101: 7 | V101: 17.53882682 | W101: 0.9352394632 | X101: 0.6577060056 | Y101: 17.26129336 | AC101: 7 | AD101: 15.67145858 | AE101: 0.6779036833 | AF101: 0.352607818 | AG101: 15.34616271
U102: 8 | V102: 17.26129336 | W102: 0.9352394632 | X102: 0.6472985009 | Y102: 16.9733524 | AC102: 8 | AD102: 15.34616271 | AE102: 0.6779036833 | AF102: 0.345288661 | AG102: 15.01354769
U103: 8 | V103: 16.9733524 | W103: 0.9352394632 | X103: 0.6365007148 | Y103: 16.67461365 | AC103: 8 | AD103: 15.01354769 | AE103: 0.6779036833 | AF103: 0.337804823 | AG103: 14.67344883
U104: 8 | V104: 16.67461365 | W104: 0.9352394632 | X104: 0.6252980118 | Y104: 16.3646722 | AC104: 8 | AD104: 14.67344883 | AE104: 0.6779036833 | AF104: 0.3301525987 | AG104: 14.32569775
U105: 8 | V105: 16.3646722 | W105: 0.9352394632 | X105: 0.6136752074 | Y105: 16.04310794 | AC105: 8 | AD105: 14.32569775 | AE105: 0.6779036833 | AF105: 0.3223281993 | AG105: 13.97012226
U106: 9 | V106: 16.04310794 | W106: 0.9352394632 | X106: 0.6016165478 | Y106: 15.70948503 | AC106: 9 | AD106: 13.97012226 | AE106: 0.6779036833 | AF106: 0.3143277509 | AG106: 13.60654633
U107: 9 | V107: 15.70948503 | W107: 0.9352394632 | X107: 0.5891056884 | Y107: 15.36335125 | AC107: 9 | AD107: 13.60654633 | AE107: 0.6779036833 | AF107: 0.3061472924 | AG107: 13.23478994
U108: 9 | V108: 15.36335125 | W108: 0.9352394632 | X108: 0.5761256719 | Y108: 15.00423746 | AC108: 9 | AD108: 13.23478994 | AE108: 0.6779036833 | AF108: 0.2977827736 | AG108: 12.85466903
U109: 9 | V109: 15.00423746 | W109: 0.9352394632 | X109: 0.5626589047 | Y109: 14.6316569 | AC109: 9 | AD109: 12.85466903 | AE109: 0.6779036833 | AF109: 0.2892300531 | AG109: 12.4659954
U110: 10 | V110: 14.6316569 | W110: 0.9352394632 | X110: 0.5486871338 | Y110: 14.24510457 | AC110: 10 | AD110: 12.4659954 | AE110: 0.6779036833 | AF110: 0.2804848965 | AG110: 12.06857661
U111: 10 | V111: 14.24510457 | W111: 0.9352394632 | X111: 0.5341914214 | Y111: 13.84405653 | AC111: 10 | AD111: 12.06857661 | AE111: 0.6779036833 | AF111: 0.2715429738 | AG111: 11.6622159
U112: 10 | V112: 13.84405653 | W112: 0.9352394632 | X112: 0.5191521198 | Y112: 13.42796919 | AC112: 10 | AD112: 11.6622159 | AE112: 0.6779036833 | AF112: 0.2623998578 | AG112: 11.24671208
U113: 10 | V113: 13.42796919 | W113: 0.9352394632 | X113: 0.5035488445 | Y113: 12.99627857 | AC113: 10 | AD113: 11.24671208 | AE113: 0.6779036833 | AF113: 0.2530510217 | AG113: 10.82185941
U114: 11 | V114: 12.99627857 | W114: 0.9352394632 | X114: 0.4873604463 | Y114: 12.54839955 | AC114: 11 | AD114: 10.82185941 | AE114: 0.6779036833 | AF114: 0.2434918368 | AG114: 10.38744757
U115: 11 | V115: 12.54839955 | W115: 0.9352394632 | X115: 0.4705649831 | Y115: 12.08372507 | AC115: 11 | AD115: 10.38744757 | AE115: 0.6779036833 | AF115: 0.2337175703 | AG115: 9.943261455
U116: 11 | V116: 12.08372507 | W116: 0.9352394632 | X116: 0.4531396901 | Y116: 11.6016253 | AC116: 11 | AD116: 9.943261455 | AE116: 0.6779036833 | AF116: 0.2237233827 | AG116: 9.489081155
U117: 11 | V117: 11.6016253 | W117: 0.9352394632 | X117: 0.4350609486 | Y117: 11.10144678 | AC117: 11 | AD117: 9.489081155 | AE117: 0.6779036833 | AF117: 0.213504326 | AG117: 9.024681797
U118: 12 | V118: 11.10144678 | W118: 0.9352394632 | X118: 0.4163042544 | Y118: 10.58251157 | AC118: 12 | AD118: 9.024681797 | AE118: 0.6779036833 | AF118: 0.2030553404 | AG118: 8.549833455
U119: 12 | V119: 10.58251157 | W119: 0.9352394632 | X119: 0.396844184 | Y119: 10.04411629 | AC119: 12 | AD119: 8.549833455 | AE119: 0.6779036833 | AF119: 0.1923712527 | AG119: 8.064301024
U120: 12 | V120: 10.04411629 | W120: 0.9352394632 | X120: 0.3766543611 | Y120: 9.485531193 | AC120: 12 | AD120: 8.064301024 | AE120: 0.6779036833 | AF120: 0.181446773 | AG120: 7.567844114
U121: 12 | V121: 9.485531193 | W121: 0.9352394632 | X121: 0.3557074197 | Y121: 8.905999149 | AC121: 12 | AD121: 7.567844114 | AE121: 0.6779036833 | AF121: 0.1702764926 | AG121: 7.060216923
U122: 13 | V122: 8.905999149 | W122: 0.9352394632 | X122: 0.3339749681 | Y122: 8.304734654 | AC122: 13 | AD122: 7.060216923 | AE122: 0.6779036833 | AF122: =(AD122*($O$20/$N$22)) -> 0.1588548808 | AG122: =AD122-(AE122-AF122) -> 6.54116812
U123: 13 | V123: 8.304734654 | W123: 0.9352394632 | X123: 0.3114275495 | Y123: 7.68092274 | AC123: 13 | AD123: 6.54116812 | AE123: 0.6779036833 | AF123: 0.1471762827 | AG123: 6.01044072
U124: 13 | V124: 7.68092274 | W124: 0.9352394632 | X124: 0.2880346028 | Y124: 7.03371788 | AC124: 13 | AD124: 6.01044072 | AE124: 0.6779036833 | AF124: 0.1352349162 | AG124: 5.467771953
U125: 13 | V125: 7.03371788 | W125: 0.9352394632 | X125: 0.2637644205 | Y125: 6.362242837 | AC125: 13 | AD125: 5.467771953 | AE125: 0.6779036833 | AF125: 0.1230248689 | AG125: 4.912893138
U126: 14 | V126: 6.362242837 | W126: 0.9352394632 | X126: 0.2385841064 | Y126: 5.665587481 | AC126: 14 | AD126: 4.912893138 | AE126: 0.6779036833 | AF126: 0.1105400956 | AG126: 4.345529551
U127: 14 | V127: 5.665587481 | W127: 0.9352394632 | X127: 0.2124595305 | Y127: 4.942807548 | AC127: 14 | AD127: 4.345529551 | AE127: 0.6779036833 | AF127: 0.09777441489 | AG127: 3.765400282
U128: 14 | V128: 4.942807548 | W128: 0.9352394632 | X128: 0.185355283 | Y128: 4.192923368 | AC128: 14 | AD128: 3.765400282 | AE128: 0.6779036833 | AF128: 0.08472150635 | AG128: 3.172218105
U129: 14 | V129: 4.192923368 | W129: 0.9352394632 | X129: 0.1572346263 | Y129: 3.414918531 | AC129: 14 | AD129: 3.172218105 | AE129: 0.6779036833 | AF129: 0.07137490737 | AG129: 2.565689329
U130: 15 | V130: 3.414918531 | W130: 0.9352394632 | X130: 0.1280594449 | Y130: 2.607738513 | AC130: 15 | AD130: 2.565689329 | AE130: 0.6779036833 | AF130: 0.05772800991 | AG130: 1.945513656
U131: 15 | V131: 2.607738513 | W131: 0.9352394632 | X131: 0.09779019422 | Y131: 1.770289244 | AC131: 15 | AD131: 1.945513656 | AE131: 0.6779036833 | AF131: 0.04377405726 | AG131: 1.31138403
U132: 15 | V132: 1.770289244 | W132: 0.9352394632 | X132: 0.06638584664 | Y132: 0.9014356272 | AC132: 15 | AD132: 1.31138403 | AE132: 0.6779036833 | AF132: 0.02950614067 | AG132: 0.6629864873
U133: 15 | V133: 0.9014356272 | W133: 0.9352394632 | X133: 0.03380383602 | Y133: 8.881784197e-16 | AC133: 15 | AD133: 0.6629864873 | AE133: 0.6779036833 | AF133: 0.01491719596 | AG133: 0
U134: 16 | V134: 0 | W134: 0 | X134: 0 | Y134: 0 | AC134: 16 | AD134: =IF(AC134>$O$21,0,AG133) -> 0 | AE134: =IF(AC134>$O$21,0,AE133) -> 0 | AF134: =(AD134*($O$20/$N$22)) -> 0 | AG134: =AD134-(AE134-AF134) -> 0
U135: 16 | V135: 0 | W135: 0 | X135: 0 | Y135: 0 | AC135: 16 | AD135: 0 | AE135: 0 | AF135: 0 | AG135: 0
U136: 16 | V136: 0 | W136: 0 | X136: 0 | Y136: 0 | AC136: 16 | AD136: 0 | AE136: 0 | AF136: 0 | AG136: 0
U137: 16 | V137: 0 | W137: 0 | X137: 0 | Y137: 0 | AC137: 16 | AD137: 0 | AE137: 0 | AF137: 0 | AG137: 0
U138: 17 | V138: 0 | W138: 0 | X138: 0 | Y138: 0 | AC138: 17 | AD138: 0 | AE138: 0 | AF138: 0 | AG138: 0
U139: 17 | V139: 0 | W139: 0 | X139: =(V139*($O$13/$N$15)) -> 0 | Y139: 0 | AC139: 17 | AD139: 0 | AE139: 0 | AF139: 0 | AG139: 0
U140: 17 | V140: =IF(U140>$O$14,0,Y139) -> 0 | W140: =IF(U140>$O$14,0,W139) -> 0 | X140: 0 | Y140: =V140-(W140-X140) -> 0 | AC140: 17 | AD140: 0 | AE140: 0 | AF140: 0 | AG140: 0
U141: 17 | V141: 0 | W141: 0 | X141: 0 | Y141: 0 | AC141: 17 | AD141: 0 | AE141: 0 | AF141: 0 | AG141: 0
U142: 18 | V142: 0 | W142: 0 | X142: 0 | Y142: 0 | AC142: 18 | AD142: 0 | AE142: 0 | AF142: 0 | AG142: 0
U143: 18 | V143: 0 | W143: 0 | X143: 0 | Y143: 0 | AC143: 18 | AD143: 0 | AE143: 0 | AF143: 0 | AG143: 0
U144: 18 | V144: 0 | W144: 0 | X144: 0 | Y144: 0 | AC144: 18 | AD144: 0 | AE144: 0 | AF144: 0 | AG144: 0
U145: 18 | V145: 0 | W145: 0 | X145: 0 | Y145: 0 | AC145: 18 | AD145: 0 | AE145: 0 | AF145: 0 | AG145: 0
U146: 19 | V146: 0 | W146: 0 | X146: 0 | Y146: 0 | AC146: 19 | AD146: 0 | AE146: 0 | AF146: 0 | AG146: 0
U147: 19 | V147: 0 | W147: 0 | X147: 0 | Y147: 0 | AC147: 19 | AD147: 0 | AE147: 0 | AF147: 0 | AG147: 0
U148: 19 | V148: 0 | W148: 0 | X148: 0 | Y148: 0 | AC148: 19 | AD148: 0 | AE148: 0 | AF148: 0 | AG148: 0
U149: 19 | V149: 0 | W149: 0 | X149: 0 | Y149: 0 | AC149: 19 | AD149: 0 | AE149: 0 | AF149: 0 | AG149: 0
U150: 20 | V150: 0 | W150: 0 | X150: 0 | Y150: 0 | AC150: 20 | AD150: 0 | AE150: 0 | AF150: 0 | AG150: 0
U151: 20 | V151: 0 | W151: 0 | X151: 0 | Y151: 0 | AC151: 20 | AD151: 0 | AE151: 0 | AF151: 0 | AG151: 0
U152: 20 | V152: 0 | W152: 0 | X152: 0 | Y152: 0 | AC152: 20 | AD152: 0 | AE152: 0 | AF152: 0 | AG152: 0
U153: 20 | V153: 0 | W153: 0 | X153: 0 | Y153: 0 | AC153: 20 | AD153: 0 | AE153: 0 | AF153: 0 | AG153: 0
U154: 21 | V154: 0 | W154: 0 | X154: 0 | Y154: 0 | AC154: 21 | AD154: 0 | AE154: 0 | AF154: 0 | AG154: 0
U155: 21 | V155: 0 | W155: 0 | X155: 0 | Y155: 0 | AC155: 21 | AD155: 0 | AE155: 0 | AF155: 0 | AG155: 0
U156: 21 | V156: 0 | W156: 0 | X156: 0 | Y156: 0 | AC156: 21 | AD156: 0 | AE156: 0 | AF156: 0 | AG156: 0
U157: 21 | V157: 0 | W157: 0 | X157: 0 | Y157: 0 | AC157: 21 | AD157: 0 | AE157: 0 | AF157: 0 | AG157: 0
U158: 22 | V158: 0 | W158: 0 | X158: 0 | Y158: 0 | AC158: 22 | AD158: 0 | AE158: 0 | AF158: 0 | AG158: 0
U159: 22 | V159: 0 | W159: 0 | X159: 0 | Y159: 0 | AC159: 22 | AD159: 0 | AE159: 0 | AF159: 0 | AG159: 0
U160: 22 | V160: 0 | W160: 0 | X160: 0 | Y160: 0 | AC160: 22 | AD160: 0 | AE160: 0 | AF160: 0 | AG160: 0
U161: 22 | V161: 0 | W161: 0 | X161: 0 | Y161: 0 | AC161: 22 | AD161: 0 | AE161: 0 | AF161: 0 | AG161: 0
U162: 23 | V162: 0 | W162: 0 | X162: 0 | Y162: 0 | AC162: 23 | AD162: 0 | AE162: 0 | AF162: 0 | AG162: 0
U163: 23 | V163: 0 | W163: 0 | X163: 0 | Y163: 0 | AC163: 23 | AD163: 0 | AE163: 0 | AF163: 0 | AG163: 0
U164: 23 | V164: 0 | W164: 0 | X164: 0 | Y164: 0 | AC164: 23 | AD164: 0 | AE164: 0 | AF164: 0 | AG164: 0
U165: 23 | V165: 0 | W165: 0 | X165: 0 | Y165: 0 | AC165: 23 | AD165: 0 | AE165: 0 | AF165: 0 | AG165: 0
U166: 24 | V166: 0 | W166: 0 | X166: 0 | Y166: 0 | AC166: 24 | AD166: 0 | AE166: 0 | AF166: 0 | AG166: 0
U167: 24 | V167: 0 | W167: 0 | X167: 0 | Y167: 0 | AC167: 24 | AD167: 0 | AE167: 0 | AF167: 0 | AG167: 0
U168: 24 | V168: 0 | W168: 0 | X168: 0 | Y168: 0 | AC168: 24 | AD168: 0 | AE168: 0 | AF168: 0 | AG168: 0
U169: 24 | V169: 0 | W169: 0 | X169: 0 | Y169: 0 | AC169: 24 | AD169: 0 | AE169: 0 | AF169: 0 | AG169: 0
U170: 25 | V170: 0 | W170: 0 | X170: 0 | Y170: 0 | AC170: 25 | AD170: 0 | AE170: 0 | AF170: 0 | AG170: 0
U171: 25 | V171: 0 | W171: 0 | X171: 0 | Y171: 0 | AC171: 25 | AD171: 0 | AE171: 0 | AF171: 0 | AG171: 0
U172: 25 | V172: 0 | W172: 0 | X172: 0 | Y172: 0 | AC172: 25 | AD172: 0 | AE172: 0 | AF172: 0 | AG172: 0
U173: 25 | V173: 0 | W173: 0 | X173: 0 | Y173: 0 | AC173: 25 | AD173: 0 | AE173: 0 | AF173: 0 | AG173: 0
